bitfinex/quotes_SOLUSD_20240813
["timestamp","ask_amount","ask_price","bid_price","bid_amount"]
[1723525238527,6.888,145.18,145.14,6.8898]
[1723525238827,6.888,145.18,145.11,15.062]
[1723525238828,32.01,145.18,145.11,15.062]
[1723525239025,6.8898,145.15,145.1,6.8916]
[1723525239319,32.01,145.18,145.11,6.8912]
[1723525239507,6.8885,145.17,145.12,6.8907]
[1723525240089,6.8885,145.17,145.13,6.8903]
[1723525240294,38.898,145.18,145.13,6.8903]
[1723525241622,6.8891,145.16,145.12,17.2264]
[1723525241924,32.01,145.18,145.13,8.26829009]
[1723525242399,32.01,145.18,145.14,6.8896]
[1723525242595,6.8875,145.19,145.14,6.8896]
[1723525242802,6.8875,145.19,145.15,6.8892]
[1723525243398,6.8875,145.19,145.14,6.8897]
[1723525243807,6.888,145.18,145.13,6.89]
[1723525244017,6.888,145.18,145.14,6.8898]
[1723525244313,6.888,145.18,145.12,17.2264]
[1723525244522,6.888,145.18,145.13,6.8902]
[1723525244721,6.888,145.18,145.14,6.8898]
[1723525245113,6.8875,145.19,145.14,6.8898]
[1723525245721,6.8882,145.18,145.13,6.8902]
[1723525246529,32.01,145.2,145.12,24.1171]
[1723525246530,6.8887,145.17,145.12,24.1171]
[1723525246833,6.8899,145.14,145.09,30.7092]
[1723525247130,6.8899,145.14,145.09,17.2303]
[1723525247131,6.8903,145.13,145.09,17.2303]
[1723525247626,38.9018,145.1,145.05,6.5881]
[1723525247837,6.8927,145.08,145.03,6.895]
[1723525247998,32.01,145.08,145.04,6.8943]
[1723525248203,32.01,145.1,145.03,17.2375]
[1723525248405,38.9009,145.12,145.01,6.5881]
[1723525248628,38.9009,145.12,145.02,1.37853952]
[1723525248804,6.8913,145.11,145.01,6.5881]
[1723525250040,38.9009,145.12,145.02,1.37857728]
[1723525250337,38.9009,145.12,145.02,45.0]
[1723525250514,38.9009,145.12,145.03,0.12549]
[1723525250704,38.9009,145.12,145.07,6.8928]
[1723525251032,38.9009,145.12,145.03,0.50196]
[1723525251033,32.01,145.12,145.08,6.8926]
[1723525251232,32.01,145.14,145.08,6.8926]
[1723525251429,32.01,145.14,145.07,6.8931]
[1723525251638,20.0,145.13,145.07,6.8931]
[1723525251807,20.0,145.13,145.09,6.8918]
[1723525252008,38.8999,145.14,145.1,6.8916]
[1723525252202,32.01,145.14,145.07,17.2319]
[1723525254422,6.8908,145.12,145.08,6.8926]
[1723525254735,38.8999,145.14,145.09,6.892]
[1723525255123,38.8999,145.14,145.1,6.8917]
[1723525255349,48.3329,145.16,145.11,6.8911]
[1723525255633,48.3329,145.16,145.09,17.2299]
[1723525255634,38.8991,145.16,145.12,6.8907]
[1723525255845,6.8891,145.16,145.12,6.8907]
[1723525257019,32.01,145.18,145.13,6.8902]
[1723525257221,16.2385,145.19,145.13,6.8902]
[1723525257430,6.8883,145.18,145.13,6.8902]
[1723525257627,6.8885,145.17,145.12,6.8908]
[1723525260634,6.8889,145.16,145.12,6.8908]
[1723525260829,6.8889,145.16,145.09,13.4574]
[1723525260830,32.01,145.16,145.09,13.4574]
[1723525261942,6.8902,145.14,145.09,13.4574]
[1723525262138,6.8904,145.13,145.08,6.8926]
[1723525262320,6.8916,145.11,145.07,17.232]
[1723525262523,6.8921,145.1,145.05,29.4569]
[1723525262833,6.8921,145.1,145.05,6.894]
[1723525263146,6.8921,145.1,145.04,6.8945]
[1723525263147,6.8924,145.09,145.04,6.8945]
[1723525264159,6.8936,145.07,145.03,17.2368]
[1723525264443,32.01,145.1,145.03,17.2368]
[1723525264624,32.01,145.1,145.03,24.1318]
[1723525264830,32.01,145.08,145.03,24.1318]
[1723525265150,38.9037,145.06,145.02,6.8955]
[1723525265357,0.12549,145.08,145.02,6.8955]
[1723525265648,38.9028,145.08,145.03,6.895]
[1723525266949,32.01,145.08,144.99,0.12549]
[1723525267152,32.01,145.08,144.98,23.1089]
[1723525267325,6.8946,145.04,144.98,23.1089]
[1723525267522,6.8946,145.04,144.98,30.006]
[1723525267824,6.8946,145.04,144.99,24.1393]
[1723525268447,6.8952,145.03,144.99,24.1393]
[1723525268725,6.8952,145.03,144.98,13.3831]
[1723525269555,38.9047,145.04,144.99,6.8968]
[1723525270655,6.8951,145.03,144.99,6.8968]
[1723525271152,6.8951,145.03,144.98,13.3831]
[1723525271722,97.01,145.02,144.96,17.2456]
[1723525271931,32.01,145.0,144.96,17.2456]
[1723525272265,32.01,145.0,144.91,16.4747]
[1723525272266,32.01,145.0,144.93,17.2496]
[1723525272841,6.8974,144.99,144.94,6.8993]
[1723525273043,16.5162,145.01,144.96,17.2456]
[1723525273561,23.4123,145.01,144.96,24.1439]
[1723525274270,6.897,144.99,144.95,6.8989]
[1723525275646,38.9066,145.0,144.95,6.8989]
[1723525275962,38.9066,145.0,144.93,17.2492]
[1723525276175,32.01,144.98,144.93,17.2492]
[1723525276467,6.898,144.97,144.93,24.149]
[1723525276839,6.8973,144.99,144.93,17.2492]
[1723525277164,32.01,145.0,144.94,6.8993]
[1723525277345,45.12549,144.99,144.94,6.8993]
[1723525277663,52.02259,144.99,144.94,6.8993]
[1723525278248,32.01,145.0,144.95,17.2465]
[1723525279871,6.8971,144.99,144.95,24.1453]
[1723525280266,6.8971,144.99,144.95,17.2465]
[1723525281570,6.8975,144.98,144.94,6.8993]
[1723525283272,6.898,144.97,144.92,24.1506]
[1723525284701,6.8972,144.99,144.95,6.8988]
[1723525284963,6.8972,144.99,144.92,17.2504]
[1723525284964,6.8972,144.99,144.94,6.8992]
[1723525285171,6.8972,144.99,144.95,6.8988]
[1723525285545,16.5162,145.01,144.96,6.8981]
[1723525285746,16.5162,145.01,144.97,6.8978]
[1723525285949,13.35391569,145.03,144.98,1.37953954]
[1723525286240,6.8946,145.04,144.99,6.8969]
[1723525287363,6.8951,145.03,144.98,24.1404]
[1723525288087,32.01,145.02,144.95,17.2467]
[1723525288387,6.8961,145.01,144.96,6.8984]
[1723525288673,6.8961,145.01,144.97,6.8978]
[1723525290180,38.9047,145.04,144.99,6.8969]
[1723525290375,26.8951,145.03,144.98,6.8974]
[1723525291055,6.8958,145.02,144.97,24.1418]
[1723525292255,32.01,145.02,144.97,17.244]
[1723525292857,32.01,145.02,144.96,6.898]
[1723525292858,6.8965,145.0,144.96,6.898]
[1723525293184,51.8961,145.01,144.96,6.898]
[1723525293366,6.8961,145.01,144.96,6.898]
[1723525293677,38.9056,145.02,144.97,6.8977]
[1723525295167,16.1871,145.05,145.01,17.2391]
[1723525295375,16.1871,145.05,145.01,24.1351]
[1723525295565,23.0813,145.05,145.01,17.2391]
[1723525296186,6.8955,145.03,144.98,24.1402]
[1723525296357,6.8955,145.03,144.98,17.2432]
[1723525296870,6.8956,145.02,144.98,17.2432]
[1723525297070,6.8961,145.01,144.97,6.8979]
[1723525297251,32.01,145.03,144.97,6.8979]
[1723525297563,32.01,145.03,144.95,17.2468]
[1723525297564,38.9052,145.03,144.98,6.8973]
[1723525298982,6.8956,145.02,144.97,6.8978]
[1723525299363,6.8961,145.01,144.96,6.8983]
[1723525299567,6.8965,145.0,144.95,24.1457]
[1723525299881,6.8973,144.99,144.95,17.2468]
[1723525300174,38.9065,145.01,144.96,6.8982]
[1723525300583,6.8967,145.0,144.95,24.1456]
[1723525301368,38.9061,145.01,144.96,6.8983]
[1723525301566,6.8956,145.02,144.98,6.8974]
[1723525301962,6.8956,145.02,144.95,17.2468]
[1723525301963,6.8956,145.02,144.97,6.8979]
[1723525303677,6.8961,145.01,144.97,6.8979]
[1723525304276,6.8957,145.02,144.97,6.8979]
[1723525306182,6.8961,145.01,144.97,6.8979]
[1723525306978,6.8961,145.01,144.95,17.2468]
[1723525306979,6.8967,145.0,144.95,17.2468]
[1723525307177,6.8967,145.0,144.95,24.1453]
[1723525310179,6.8971,144.99,144.95,17.2468]
[1723525310884,6.8975,144.98,144.94,6.8993]
[1723525311080,6.898,144.97,144.92,24.1504]
[1723525311281,32.01,144.93,144.86,6.6428]
[1723525311494,6.9004,144.92,144.87,6.9026]
[1723525313616,32.01,144.93,144.9,6.9012]
[1723525313803,32.01,144.95,144.87,1.38017454]
[1723525314002,65.25098,144.96,144.87,6.9023]
[1723525314003,6.9005,144.92,144.87,6.9023]
[1723525314211,32.01,144.91,144.87,6.9026]
[1723525314385,32.01,144.91,144.88,6.9021]
[1723525314582,32.01,144.95,144.87,1.38045756]
[1723525314782,65.25098,144.94,144.89,6.9014]
[1723525315005,65.0,144.94,144.89,6.9014]
[1723525315298,65.0,144.94,144.88,17.2554]
[1723525315299,32.26098,144.93,144.88,17.2554]
[1723525315499,6.9006,144.92,144.88,17.2554]
[1723525315885,6.9009,144.91,144.86,13.5459]
[1723525317311,6.9009,144.91,144.87,6.9026]
[1723525318213,6.9009,144.91,144.86,13.5459]
[1723525318390,6.9009,144.91,144.86,6.9031]
[1723525318710,6.9009,144.91,144.87,6.9027]
[1723525318900,6.9004,144.92,144.87,6.9027]
[1723525319214,39.16088,144.93,144.88,6.902]
[1723525319391,45.0,144.92,144.88,6.902]
[1723525321129,36.0813,144.94,144.89,17.2534]
[1723525321314,42.9807,144.94,144.89,17.2534]
[1723525321492,42.9807,144.94,144.89,24.155]
[1723525321992,6.8999,144.93,144.89,24.155]
[1723525322191,38.9099,144.93,144.89,17.2534]
[1723525322510,6.9009,144.91,144.87,6.9026]
[1723525323217,38.9109,144.91,144.86,24.1605]
[1723525324299,32.01,144.91,144.86,17.2574]
[1723525324503,6.9014,144.9,144.86,17.2574]
[1723525324708,6.9014,144.9,144.82,6.602]
[1723525324709,38.9129,144.87,144.83,17.261]
[1723525324883,6.9032,144.86,144.83,17.261]
[1723525325089,38.9137,144.85,144.81,6.9055]
[1723525325397,32.01,144.83,144.8,17.2647]
[1723525326004,38.9137,144.85,144.8,24.1707]
[1723525326185,6.9043,144.84,144.8,17.2647]
[1723525326381,38.9147,144.83,144.78,6.9066]
[1723525326811,45.25098,144.82,144.75,0.8285443]
[1723525327011,6.9064,144.8,144.75,7.7369443]
[1723525327182,32.26098,144.79,144.75,7.7369443]
[1723525327392,32.26098,144.81,144.76,6.9079]
[1723525327591,32.01,144.81,144.75,0.8285443]
[1723525327797,32.01,144.83,144.75,0.8285443]
[1723525328398,45.0,144.82,144.75,0.8285443]
[1723525328593,38.9156,144.81,144.75,7.7368443]
[1723525328802,45.0,144.82,144.75,0.8285443]
[1723525328803,32.01,144.79,144.75,0.8285443]
[1723525329192,32.01,144.77,144.75,0.8285443]
[1723525329533,6.9079,144.76,144.75,0.8285443]
[1723525329715,45.12549,144.78,144.75,0.8285443]
[1723525330028,45.0,144.78,144.76,6.9079]
[1723525330327,45.12549,144.78,144.75,0.8285443]
[1723525330693,52.03259,144.78,144.75,0.8285443]
[1723525330910,45.0,144.78,144.75,0.8285443]
[1723525331116,38.9166,144.79,144.75,0.8285443]
[1723525331916,13.246,144.83,144.78,6.9069]
[1723525332218,32.01,144.82,144.76,6.9079]
[1723525332435,6.906,144.8,144.75,7.7368443]
[1723525332931,6.9066,144.79,144.75,0.8285443]
[1723525333112,6.9061,144.8,144.75,7.7368443]
[1723525333306,32.01,144.82,144.76,6.9079]
[1723525333307,45.0,144.79,144.76,6.9079]
[1723525333508,32.01,144.82,144.75,0.8285443]
[1723525333509,38.9152,144.82,144.77,6.9074]
[1723525334629,45.0,144.81,144.77,6.9074]
[1723525334817,45.0,144.81,144.78,6.9069]
[1723525335019,16.1816,144.84,144.79,6.9061]
[1723525335020,48.1916,144.84,144.79,6.9061]
[1723525335218,55.0961,144.84,144.79,6.9061]
[1723525335524,48.1916,144.84,144.78,17.2666]
[1723525335723,32.01,144.82,144.75,18.0993443]
[1723525336024,32.01,144.82,144.76,6.9075]
[1723525336025,6.9056,144.81,144.76,6.9075]
[1723525336207,32.01,144.82,144.75,25.0076443]
[1723525336208,6.9061,144.8,144.75,25.0076443]
[1723525336419,84.04159,144.8,144.75,25.0076443]
[1723525337147,77.13549,144.8,144.76,6.9079]
[1723525337853,84.04159,144.8,144.76,6.9079]
[1723525338335,84.04159,144.8,144.75,25.0076443]
[1723525338938,38.9179,144.76,144.75,0.8285443]
[1723525339144,77.01,144.76,144.75,0.8285443]
[1723525339818,84.04339,144.76,144.75,0.8285443]
[1723525340238,84.04339,144.76,144.7,6.9104]
[1723525340239,7.03389,144.75,144.7,6.9104]
[1723525340431,45.12549,144.74,144.7,6.9104]
[1723525341332,52.03439,144.74,144.7,6.9104]
[1723525341547,45.12549,144.74,144.7,6.9104]
[1723525341837,39.04349,144.76,144.72,6.9098]
[1723525342044,45.0,144.75,144.72,6.9098]
[1723525342343,38.918,144.76,144.72,6.9098]
[1723525342721,32.01,144.76,144.72,6.9098]
[1723525342910,38.918,144.76,144.71,6.9102]
[1723525343113,6.9084,144.75,144.7,6.9108]
[1723525343744,38.919,144.74,144.69,24.1894]
[1723525344042,32.01,144.72,144.68,6.9117]
[1723525344216,38.9199,144.72,144.67,6.9122]
[1723525344416,0.12549,144.74,144.66,17.2816]
[1723525344646,32.01,144.74,144.66,17.2816]
[1723525344831,51.9094,144.73,144.68,6.9117]
[1723525345527,7.03539,144.72,144.67,6.9122]
[1723525345719,45.0,144.71,144.67,6.9122]
[1723525345919,6.9094,144.73,144.68,6.9117]
[1723525347561,6.9089,144.74,144.68,17.2787]
[1723525347739,20.25098,144.75,144.68,17.2787]
[1723525347942,26.9085,144.75,144.68,17.2787]
[1723525348162,6.9089,144.74,144.69,6.9112]
[1723525348541,26.9085,144.75,144.7,6.9108]
[1723525349067,6.9085,144.75,144.7,6.9108]
[1723525349370,6.9079,144.77,144.7,17.2761]
[1723525349532,26.9079,144.77,144.72,6.9095]
[1723525349733,6.9084,144.75,144.71,6.9101]
[1723525350345,26.9075,144.77,144.72,6.9098]
[1723525350871,20.0,144.77,144.73,6.909]
[1723525351081,10.42018819,144.8,144.77,6.9074]
[1723525351247,6.9056,144.81,144.77,17.2686]
[1723525352367,6.906,144.8,144.76,6.9078]
[1723525352763,6.9056,144.81,144.76,6.9078]
[1723525352934,39.8784,144.86,144.75,7.50815925]
[1723525353139,16.2941,144.86,144.76,1.50694925]
[1723525353353,6.9033,144.86,144.81,17.2635]
[1723525354167,32.01,144.87,144.78,24.1738]
[1723525354168,6.9041,144.84,144.78,24.1738]
[1723525354772,32.13549,144.85,144.78,17.2672]
[1723525354986,6.9055,144.82,144.77,6.9074]
[1723525355186,6.9056,144.81,144.76,6.9079]
[1723525357057,38.915,144.83,144.75,23.3974]
[1723525357255,32.01,144.85,144.76,1.3814787]
[1723525357476,32.01,144.87,144.77,1.38118906]
[1723525357783,20.0,144.86,144.77,1.38118906]
[1723525358086,20.0,144.86,144.76,0.12549]
[1723525358388,26.9035,144.86,144.81,6.9055]
[1723525358965,38.9127,144.87,144.76,0.50196]
[1723525359183,38.9127,144.87,144.77,15.7475]
[1723525359385,38.9127,144.87,144.78,0.25098]
[1723525359686,6.9032,144.86,144.81,6.9055]
[1723525359990,6.9037,144.85,144.8,6.9059]
[1723525360687,6.9032,144.86,144.81,6.9055]
[1723525360990,32.01,144.87,144.83,6.9041]
[1723525361199,16.2941,144.9,144.86,6.9031]
[1723525361372,38.9112,144.91,144.86,6.9031]
[1723525361890,6.9013,144.9,144.86,6.9031]
[1723525362280,6.9019,144.89,144.84,24.1636]
[1723525362502,0.25098,144.9,144.84,24.1636]
[1723525362710,20.25098,144.9,144.84,24.1636]
[1723525362909,65.25098,144.9,144.84,24.1636]
[1723525363418,6.904,144.85,144.81,23.5797]
[1723525363607,6.9033,144.86,144.81,30.4852]
[1723525363922,6.9028,144.87,144.83,6.9046]
[1723525364792,6.9023,144.88,144.83,6.9046]
[1723525365316,47.26278,144.89,144.84,6.904]
[1723525365619,45.0,144.88,144.84,6.904]
[1723525366233,51.9023,144.88,144.84,6.904]
[1723525366416,51.9023,144.88,144.83,6.9045]
[1723525366720,6.9028,144.87,144.83,6.9045]
[1723525366902,6.9023,144.88,144.84,6.9041]
[1723525367693,6.9023,144.88,144.83,6.9045]
[1723525368317,40.23549,144.89,144.81,23.5797]
[1723525368503,45.0,144.88,144.81,23.5797]
[1723525368700,6.9028,144.87,144.82,6.9047]
[1723525370398,6.9028,144.87,144.83,6.9045]
[1723525370904,45.0,144.88,144.83,6.9045]
[1723525370905,51.9023,144.88,144.83,6.9045]
[1723525371812,20.12549,144.9,144.81,6.3162]
[1723525371998,20.0,144.9,144.81,6.3162]
[1723525372198,40.11,144.91,144.82,1.3807286]
[1723525372394,6.9009,144.91,144.86,6.9028]
[1723525374804,6.9013,144.9,144.86,6.9028]
[1723525376435,40.11,144.93,144.88,6.9022]
[1723525376634,47.0092,144.95,144.9,6.9012]
[1723525376801,6.8985,144.96,144.91,6.9007]
[1723525377927,47.30923757,144.97,144.89,32.6208]
[1723525378129,45.12549,144.96,144.89,32.6208]
[1723525378344,6.8996,144.94,144.89,39.5222]
[1723525379127,6.8999,144.93,144.89,32.6208]
[1723525379338,6.9003,144.92,144.87,13.0268]
[1723525379540,6.8999,144.93,144.88,6.9021]
[1723525380044,6.8999,144.93,144.88,6.9022]
[1723525380257,6.8999,144.93,144.87,6.1242]
[1723525380258,45.0,144.92,144.87,13.0268]
[1723525380557,6.9012,144.91,144.87,6.1242]
[1723525381749,6.9013,144.9,144.86,17.2575]
[1723525381955,40.11,144.91,144.84,6.9037]
[1723525382134,45.0,144.9,144.84,6.9037]
[1723525382655,47.0109,144.91,144.83,23.8015]
[1723525382952,6.9012,144.91,144.86,6.9031]
[1723525383156,45.0,144.9,144.85,17.258]
[1723525383333,51.9016,144.9,144.86,6.9031]
[1723525383639,45.0,144.9,144.86,6.9031]
[1723525383870,7.02589,144.92,144.87,6.9025]
[1723525384023,39.09589,144.92,144.87,6.9025]
[1723525384545,32.19549,144.92,144.88,6.902]
[1723525384855,39.09579,144.92,144.87,6.9026]
[1723525385433,6.9009,144.91,144.86,6.903]
[1723525386738,32.07,144.92,144.88,6.9022]
[1723525386941,38.9704,144.92,144.87,6.9026]
[1723525387327,6.901,144.91,144.86,6.9031]
[1723525387550,32.07,144.9,144.85,24.1615]
[1723525388237,38.9714,144.9,144.85,24.1615]
[1723525389652,32.07,144.9,144.83,6.54]
[1723525389832,38.9724,144.88,144.83,13.4442]
[1723525390155,32.07,144.88,144.84,6.904]
[1723525390343,32.07,144.88,144.85,6.9035]
[1723525390553,32.07,144.88,144.84,6.904]
[1723525391070,6.9031,144.87,144.82,17.2625]
[1723525391366,6.9031,144.87,144.81,15.5122]
[1723525391367,38.9732,144.86,144.81,6.9055]
[1723525391524,38.9732,144.86,144.82,6.905]
[1723525391729,6.9026,144.88,144.83,6.9045]
[1723525391928,38.9726,144.88,144.81,17.2631]
[1723525392144,38.9726,144.88,144.83,6.9046]
[1723525392331,32.07,144.88,144.84,6.9041]
[1723525392665,32.07,144.9,144.86,6.903]
[1723525392959,38.9713,144.9,144.86,6.903]
[1723525393152,6.9018,144.89,144.84,6.904]
[1723525393353,32.07,144.9,144.84,6.904]
[1723525394057,32.07,144.9,144.85,6.9036]
[1723525394236,38.9713,144.9,144.86,6.9032]
[1723525394435,6.902,144.89,144.83,17.2608]
[1723525395257,6.902,144.89,144.84,6.9041]
[1723525395434,6.9022,144.88,144.83,24.1653]
[1723525397459,6.9018,144.89,144.84,6.904]
[1723525399738,32.07,144.9,144.85,17.2586]
[1723525400047,38.9713,144.9,144.85,24.1621]
[1723525401665,22.9772,144.91,144.85,17.2586]
[1723525402072,6.9008,144.91,144.85,17.2586]
[1723525402446,6.9008,144.91,144.86,6.903]
[1723525403137,6.9014,144.9,144.85,24.1621]
[1723525403566,6.9009,144.91,144.86,6.9031]
[1723525404066,6.9027,144.87,144.83,16.1648]
[1723525404444,6.9027,144.87,144.82,24.1669]
[1723525404868,6.9027,144.87,144.83,6.9044]
[1723525405047,38.9723,144.88,144.83,6.9044]
[1723525405846,38.9723,144.88,144.84,6.904]
[1723525406061,38.9723,144.88,144.83,6.9045]
[1723525406466,6.9027,144.87,144.83,6.9045]
[1723525406648,6.9034,144.86,144.82,17.2622]
[1723525406850,6.9034,144.86,144.82,24.1672]
[1723525407271,38.9734,144.86,144.82,17.2622]
[1723525407439,38.9734,144.86,144.81,6.9055]
[1723525407440,6.9037,144.85,144.81,6.9055]
[1723525408175,38.9733,144.86,144.81,6.9055]
[1723525408345,32.07,144.86,144.82,6.905]
[1723525408541,6.9028,144.87,144.82,6.905]
[1723525408749,38.9723,144.88,144.83,6.9045]
[1723525410548,6.9028,144.87,144.82,6.905]
[1723525416749,6.9028,144.87,144.81,17.2632]
[1723525416750,6.9028,144.87,144.83,6.9045]
[1723525417749,6.9028,144.87,144.82,6.9049]
[1723525418761,32.07,144.9,144.83,17.2609]
[1723525418962,32.07,144.9,144.84,8.28455847]
[1723525418963,6.9018,144.89,144.84,8.28455847]
[1723525419165,6.9023,144.88,144.83,24.1654]
[1723525422763,6.9029,144.87,144.83,17.2609]
[1723525422959,6.9032,144.86,144.8,17.2645]
[1723525423293,38.9726,144.88,144.82,6.9047]
[1723525423596,38.9726,144.88,144.83,6.9045]
[1723525424589,32.07,144.88,144.82,6.905]
[1723525424889,6.9032,144.86,144.82,6.905]
[1723525425799,6.9032,144.86,144.81,6.9055]
[1723525426186,6.9037,144.85,144.81,6.9055]
[1723525426387,6.9045,144.84,144.8,17.2645]
[1723525427187,48.5325,144.86,144.8,17.2645]
[1723525427399,32.07,144.84,144.78,6.9069]
[1723525427694,32.07,144.84,144.77,25.47683086]
[1723525427695,32.07,144.82,144.75,16.84043086]
[1723525427895,6.9056,144.81,144.77,17.2685]
[1723525429991,6.9056,144.81,144.77,24.176]
[1723525430500,32.07,144.8,144.74,17.2718]
[1723525430703,6.907,144.78,144.74,17.2718]
[1723525431001,6.9075,144.77,144.72,6.9098]
[1723525431167,32.07,144.78,144.71,49.76215878]
[1723525431168,38.9771,144.78,144.73,6.9093]
[1723525432001,6.9076,144.77,144.72,6.9098]
[1723525432378,6.908,144.76,144.71,34.46375878]
[1723525432598,6.908,144.76,144.72,6.9098]
[1723525432770,32.07,144.76,144.71,10.27815878]
[1723525432973,32.07,144.74,144.71,10.27815878]
[1723525433180,32.07,144.76,144.71,10.27815878]
[1723525433691,6.909,144.74,144.71,10.27815878]
[1723525434303,6.909,144.74,144.7,6.9108]
[1723525434587,6.909,144.74,144.68,17.2791]
[1723525434588,32.07,144.76,144.68,17.2791]
[1723525434789,6.9088,144.75,144.69,6.911]
[1723525435103,6.909,144.74,144.69,6.911]
[1723525436797,32.07,144.76,144.7,17.2764]
[1723525437100,6.9078,144.77,144.72,6.9095]
[1723525438192,9.66915633,144.77,144.72,6.9095]
[1723525438506,6.908,144.76,144.71,6.9102]
[1723525438808,32.07,144.78,144.7,24.1872]
[1723525438809,6.9086,144.75,144.7,24.1872]
[1723525440315,6.908,144.76,144.7,17.2764]
[1723525440803,6.908,144.76,144.71,6.9102]
[1723525440991,6.9085,144.75,144.7,24.1871]
[1723525441488,6.9089,144.74,144.7,17.2764]
[1723525441894,32.07,144.76,144.71,6.9102]
[1723525442102,34.83872662,144.78,144.71,6.9102]
[1723525442412,34.83872662,144.78,144.72,6.9098]
[1723525442606,32.07,144.78,144.73,6.9093]
[1723525442908,6.9071,144.78,144.73,6.9093]
[1723525443117,54.1671,144.8,144.74,6.9087]
[1723525443285,6.907,144.78,144.73,6.9093]
[1723525445215,32.07,144.78,144.7,6.3626]
[1723525445718,6.9085,144.75,144.71,6.9103]
[1723525445901,6.908,144.76,144.71,6.9103]
[1723525446510,6.9076,144.77,144.72,6.9097]
[1723525447330,6.9081,144.76,144.71,24.1853]
[1723525447615,32.07,144.78,144.71,24.1853]
[1723525447822,45.0,144.77,144.71,24.1853]
[1723525448028,6.908,144.76,144.72,6.9098]
[1723525448516,6.908,144.76,144.71,24.1854]
[1723525449494,38.977,144.78,144.73,6.909]
[1723525449713,6.907,144.78,144.73,6.909]
[1723525449925,6.9066,144.79,144.74,6.9085]
[1723525450531,6.907,144.78,144.74,6.9085]
[1723525450700,6.907,144.78,144.73,24.1822]
[1723525451432,6.9066,144.79,144.74,6.9088]
[1723525452114,55.0079,144.8,144.75,6.9082]
[1723525452426,23.0481,144.84,144.79,6.9064]
[1723525452638,17.25062371,144.86,144.81,6.9051]
[1723525452812,32.07,144.87,144.81,17.2633]
[1723525453125,6.9032,144.86,144.81,17.2633]
[1723525453435,6.9032,144.86,144.79,15.321]
[1723525453436,32.07,144.87,144.79,15.321]
[1723525453806,6.9052,144.82,144.79,15.321]
[1723525453999,6.9052,144.82,144.78,17.2672]
[1723525454630,32.07,144.83,144.76,6.9078]
[1723525454937,6.9056,144.81,144.76,6.9078]
[1723525455222,6.9056,144.81,144.75,23.4549]
[1723525455223,6.9066,144.79,144.75,23.4549]
[1723525455430,6.9061,144.8,144.75,30.3632]
[1723525455633,6.9056,144.81,144.76,6.9079]
[1723525457037,6.9061,144.8,144.75,30.3633]
[1723525457219,32.07,144.81,144.75,23.4549]
[1723525458337,6.9042,144.84,144.79,24.1725]
[1723525458510,38.9737,144.85,144.8,6.9058]
[1723525458830,32.07,144.87,144.79,17.2661]
[1723525459017,6.9041,144.84,144.79,24.1726]
[1723525459231,32.07,144.85,144.75,6.1842]
[1723525459417,6.9059,144.81,144.75,23.4541]
[1723525460437,6.9052,144.82,144.77,6.9074]
[1723525462846,32.07,144.87,144.75,6.1842]
[1723525463039,32.07,144.87,144.76,0.50196]
[1723525463240,6.9033,144.86,144.81,6.9052]
[1723525463437,6.9033,144.86,144.82,6.905]